[Event "24th Hoogeveen Open 2021"]
[Site "Hoogeveen"]
[Date "2021.10.23"]
[Round "9.6"]
[White "Van den Berg, Bram"]
[Black "Klaren, Duncan"]
[Result "1-0"]
[ECO "B20"]
[WhiteElo "2209"]
[BlackElo "1845"]
[Annotator "ChessBase"]
[PlyCount "85"]
[EventDate "2021.10.15"]
[EventType "swiss"]
[EventCountry "NED"]
[SourceTitle "playchess.com"]
[Source "ChessBase"]
[SourceQuality "1"]
[TimeControl "40/5400+30:1800+30"]

1. e4 {[%emt 0:00:04]} c5 {[%emt 0:00:06]} 2. b4 {[%emt 0:00:04]} cxb4 {[%emt 0:00:09]} 3. a3 {[%emt 0:00:04]} d5 {[%emt 0:00:23]} 4. exd5 {[%emt 0:00:05]} Qxd5 {[%emt 0:00:14]} 5. Nf3 {[%emt 0:00:05]} e5 {[%emt 0:00:42]} 6. c4 {[%emt 0:00:53]} Qd8 {[%emt 0:08:43]} 7. axb4 {[%emt 0:02:43]} Bxb4 {[%emt 0:04:51]} 8. Be2 {[%emt 0:02:04]} Nc6 {[%emt 0:02:09]} 9. Bb2 {[%emt 0:02:03]} Qe7 {[%emt 0:05:10]} 10. Nc3 {[%emt 0:06:37]} Nf6 {[%emt 0:04:01]} 11. O-O {[%emt 0:05:49]} Be6 {[%emt 0:03:13]} 12. Re1 {[%emt 0:04:19]} O-O {[%emt 0:03:39]} 13. Bf1 {[%emt 0:00:35]} Rad8 {[%emt 0:06:05]} 14. Nxe5 {[%emt 0:02:26]} Nxe5 {[%emt 0:00:13]} 15. Rxe5 {[%emt 0:00:06]} Bd6 {[%emt 0:00:23]} 16. Rg5 {[%emt 0:01:07]} g6 {[%emt 0:16:51]} 17. g3 {[%emt 0:02:20]} Bf5 {[%emt 0:08:16]} 18. Rxf5 {[%emt 0:14:13]} gxf5 {[%emt 0:00:07]} 19. Qf3 {[%emt 0:00:12]} Qe6 {[%emt 0:08:50]} 20. d4 {[%emt 0:07:32]} Bb4 {[%emt 0:05:29]} 21. Bd3 {[%emt 0:06:36]} Bxc3 {[%emt 0:05:54]} 22. Bxc3 {[%emt 0:00:25]} Ne4 {[%emt 0:00:09]} 23. d5 {[%emt 0:01:06]} Qg6 {[%emt 0:00:51]} 24. Bb2 {[%emt 0:01:38]} Rfe8 {[%emt 0:01:30]} 25. Qd1 {[%emt 0:03:14]} Qb6 {[%emt 0:01:36]} 26. Qc2 {[%emt 0:01:28]} a6 {[%emt 0:03:55]} 27. Kg2 {[%emt 0:02:33]} Qh6 {[%emt 0:00:49]} 28. Rd1 {[%emt 0:02:03]} Qh5 {[%emt 0:02:43]} 29. Be2 {[%emt 0:06:44]} Qh6 {[%emt 0:01:41]} 30. h4 {[%emt 0:04:00]} Qg6 {[%emt 0:01:28]} 31. Bf3 {[%emt 0:01:28]} b6 {[%emt 0:03:10]} 32. Qd3 {[%emt 0:02:03]} Qd6 {[%emt 0:00:52]} 33. h5 {[%emt 0:04:56]} h6 {[%emt 0:00:39]} 34. Re1 {[%emt 0:05:53]} Qd7 {[%emt 0:01:32]} 35. Qd4 {[%emt 0:02:38]} f6 {[%emt 0:00:09]} 36. Bxe4 {[%emt 0:01:07]} fxe4 {[%emt 0:00:21]} 37. Qxf6 {[%emt 0:00:09]} Qh7 {[%emt 0:00:08]} 38. Qxb6 {[%emt 0:01:49]} Qf5 {[%emt 0:01:19]} 39. Qxh6 {[%emt 0:00:52]} Re7 {[%emt 0:00:36]} 40. Qh8+ {[%emt 0:00:31]} Kf7 {[%emt 0:00:05]} 41. Qxd8 {[%emt 0:30:08]} Qf3+ {[%emt 0:30:13]} 42. Kg1 {[%emt 0:00:04]} e3 {[%emt 0:00:11]} 43. Qxe7+ {[%emt 0:00:05]} 1-0

[Event "24th Hoogeveen Open 2021"]
[Site "Hoogeveen"]
[Date "2021.10.23"]
[Round "9.7"]
[White "Tabak, Stefan"]
[Black "Van der Hagen, Loek"]
[Result "1/2-1/2"]
[ECO "C47"]
[WhiteElo "2168"]
[BlackElo "2010"]
[Annotator "ChessBase"]
[PlyCount "101"]
[EventDate "2021.10.15"]
[EventType "swiss"]
[EventCountry "NED"]
[SourceTitle "playchess.com"]
[Source "ChessBase"]
[SourceQuality "1"]
[TimeControl "40/5400+30:1800+30"]

1. e4 {[%emt 0:00:03]} e5 {[%emt 0:00:13]} 2. Nf3 {[%emt 0:00:23]} Nc6 {[%emt 0:00:05]} 3. Nc3 {[%emt 0:00:11]} Nf6 {[%emt 0:00:06]} 4. d4 {[%emt 0:00:05]} exd4 {[%emt 0:00:35]} 5. Nxd4 {[%emt 0:00:05]} Bb4 {[%emt 0:00:12]} 6. Nxc6 {[%emt 0:00:05]} bxc6 {[%emt 0:00:08]} 7. Bd3 {[%emt 0:00:04]} d5 {[%emt 0:00:22]} 8. exd5 {[%emt 0:00:05]} cxd5 {[%emt 0:00:05]} 9. O-O {[%emt 0:00:07]} O-O {[%emt 0:00:04]} 10. Bg5 {[%emt 0:00:05]} c6 {[%emt 0:00:14]} 11. Qf3 {[%emt 0:00:06]} Bd6 {[%emt 0:00:18]} 12. h3 {[%emt 0:00:10]} Rb8 {[%emt 0:00:45]} 13. Rab1 {[%emt 0:00:27]} h6 {[%emt 0:01:14]} 14. Bf4 {[%emt 0:01:24]} Re8 {[%emt 0:00:59]} 15. b3 {[%emt 0:03:32]} Rb4 {[%emt 0:06:41]} 16. Bxd6 {[%emt 0:00:45]} Qxd6 {[%emt 0:00:06]} 17. Rfe1 {[%emt 0:01:20]} Rxe1+ {[%emt 0:02:35]} 18. Rxe1 {[%emt 0:00:09]} Be6 {[%emt 0:00:30]} 19. Na4 {[%emt 0:03:51]} c5 {[%emt 0:09:19]} 20. c3 {[%emt 0:05:09]} Rb8 {[%emt 0:01:51]} 21. Qe3 {[%emt 0:10:20]} Rc8 {[%emt 0:07:56]} 22. Rd1 {[%emt 0:03:27]} Bd7 {[%emt 0:11:36]} 23. Nb2 {[%emt 0:00:55]} Kf8 {[%emt 0:02:18]} 24. Be2 {[%emt 0:08:17]} Qe6 {[%emt 0:02:53]} 25. Bf3 {[%emt 0:12:59]} Qa6 {[%emt 0:07:05]} 26. Bxd5 {[%emt 0:06:10]} Qxa2 {[%emt 0:01:25]} 27. Rd2 {[%emt 0:07:51]} Nxd5 {[%emt 0:11:56]} 28. Rxd5 {[%emt 0:00:14]} Be6 {[%emt 0:03:32]} 29. Rxc5 {[%emt 0:01:58]} Re8 {[%emt 0:05:08]} 30. Nd3 {[%emt 0:02:52]} Qxb3 {[%emt 0:04:29]} 31. Qd4 {[%emt 0:04:07]} Qb1+ {[%emt 0:02:10]} 32. Kh2 {[%emt 0:00:26]} Qb8+ {[%emt 0:00:33]} 33. g3 {[%emt 0:01:00]} Rd8 {[%emt 0:01:38]} 34. Qe3 {[%emt 0:05:39]} Bd5 {[%emt 0:05:31]} 35. Qe5 {[%emt 0:20:19]} Qxe5 {[%emt 0:03:50]} 36. Nxe5 {[%emt 0:00:01]} Be6 {[%emt 0:02:49]} 37. f4 {[%emt 0:02:15]} f6 {[%emt 0:05:01]} 38. Nf3 {[%emt 0:00:35]} Ke7 {[%emt 0:01:50]} 39. Nd4 {[%emt 0:00:15]} Rd7 {[%emt 0:01:04]} 40. g4 {[%emt 0:01:48]} Rb7 {[%emt 0:00:46]} 41. Kg3 {[%emt 0:30:49]} Bd7 {[%emt 0:05:08]} 42. f5 {[%emt 0:00:00]} Kd6 {[%emt 0:01:04]} 43. Ra5 {[%emt 0:00:00]} Rc7 {[%emt 0:01:02]} 44. Kf4 {[%emt 0:00:00]} Rxc3 {[%emt 0:12:44]} 45. Ra6+ {[%emt 0:00:00]} Ke7 {[%emt 0:02:26]} 46. Rxa7 {[%emt 0:00:00]} Rc4 {[%emt 0:05:28]} 47. Ke3 {[%emt 0:00:00]} Rc3+ {[%emt 0:00:10]} 48. Kf4 {[%emt 0:00:00]} Rc4 {[%emt 0:00:25]} 49. Ke3 {[%emt 0:00:00]} Rc3+ {[%emt 0:00:04]} 50. Kf4 {[%emt 0:00:00]} Rc4 {[%emt 0:00:07]} 51. Ke4 {[%emt 0:01:59]} 1/2-1/2